[Event "Polonia Wroclaw Masters Cup-GM"]
[Site "Wroclaw"]
[Date "2019.05.04"]
[Round "8.1"]
[White "Cukrowski, Filip"]
[Black "Sivuk, Vitaliy"]
[Result "1/2-1/2"]
[ECO "C01"]
[WhiteElo "2416"]
[BlackElo "2523"]
[Annotator "ChessBase"]
[PlyCount "63"]
[EventDate "2019.04.28"]
[EventType "tourn"]
[EventCountry "POL"]
[SourceTitle "playchess.com"]
[Source "ChessBase"]
[SourceQuality "1"]
[TimeControl "40/5400+30:900+30"]

1. e4 {[%emt 0:01:28]} e6 {[%emt 0:00:00]} 2. d4 {[%emt 0:00:21]} d5 {[%emt 0:00:00]} 3. exd5 {[%emt 0:02:14]} exd5 {[%emt 0:00:00]} 4. Nf3 {[%emt 0:00:10]} Nf6 {[%emt 0:00:04]} 5. Bd3 {[%emt 0:08:35]} c5 {[%emt 0:01:37]} 6. O-O {[%emt 0:03:42]} c4 {[%emt 0:00:08]} 7. Be2 {[%emt 0:00:11]} Bd6 {[%emt 0:04:48]} 8. b3 {[%emt 0:00:25]} cxb3 {[%emt 0:00:06]} 9. axb3 {[%emt 0:00:08]} O-O {[%emt 0:00:08]} 10. Bg5 {[%emt 0:03:31]} Nc6 {[%emt 0:01:14]} 11. c4 {[%emt 0:01:25]} h6 {[%emt 0:04:41]} 12. Bxf6 {[%emt 0:06:11]} Qxf6 {[%emt 0:00:17]} 13. Nc3 {[%emt 0:00:04]} dxc4 {[%emt 0:01:12]} 14. Ne4 {[%emt 0:00:05]} Qe7 {[%emt 0:00:35]} 15. Nxd6 {[%emt 0:00:05]} Qxd6 {[%emt 0:00:05]} 16. bxc4 {[%emt 0:04:30]} Bg4 {[%emt 0:01:29]} 17. h3 {[%emt 0:00:07]} Bh5 {[%emt 0:01:42]} 18. Rb1 {[%emt 0:15:57]} b6 {[%emt 0:03:00]} 19. c5 {[%emt 0:00:12]} bxc5 {[%emt 0:02:29]} 20. dxc5 {[%emt 0:00:07]} Qf6 {[%emt 0:00:14]} 21. Qd6 {[%emt 0:02:47]} Qxd6 {[%emt 0:10:28]} 22. cxd6 {[%emt 0:00:07]} Rab8 {[%emt 0:00:07]} 23. g4 {[%emt 0:08:51]} Bg6 {[%emt 0:00:12]} 24. Rbc1 {[%emt 0:00:05]} Be4 {[%emt 0:03:52]} 25. Rfd1 {[%emt 0:02:32]} Rfd8 {[%emt 0:01:34]} 26. Rc5 {[%emt 0:14:45]} Rb2 {[%emt 0:06:00]} 27. Kf1 {[%emt 0:00:19]} Rc2 {[%emt 0:02:13]} 28. Rxc2 {[%emt 0:05:35]} Bxc2 {[%emt 0:00:12]} 29. Rd2 {[%emt 0:00:03]} Be4 {[%emt 0:02:35]} 30. Ne1 {[%emt 0:00:04]} Na5 {[%emt 0:02:33]} 31. Ra2 {[%emt 0:02:06]} Nb7 {[%emt 0:00:21]} 32. Rxa7 {[%emt 0:00:07]} 1/2-1/2

[Event "Polonia Wroclaw Masters Cup-GM"]
[Site "Wroclaw"]
[Date "2019.05.04"]
[Round "8.2"]
[White "Tazbir, Marcin"]
[Black "Skawinski, Arkadiusz"]
[Result "1/2-1/2"]
[ECO "E06"]
[WhiteElo "2534"]
[BlackElo "2392"]
[Annotator "ChessBase"]
[PlyCount "21"]
[EventDate "2019.04.28"]
[EventType "tourn"]
[EventCountry "POL"]
[SourceTitle "playchess.com"]
[Source "ChessBase"]
[SourceQuality "1"]
[TimeControl "40/5400+30:900+30"]

1. Nf3 {[%emt 0:00:00]} d5 {[%emt 0:00:00]} 2. d4 {[%emt 0:00:00]} Nf6 {[%emt 0:00:05]} 3. c4 {[%emt 0:00:05]} e6 {[%emt 0:00:05]} 4. g3 {[%emt 0:00:29]} Be7 {[%emt 0:00:28]} 5. Bg2 {[%emt 0:00:17]} O-O {[%emt 0:00:27]} 6. O-O {[%emt 0:00:16]} dxc4 {[%emt 0:00:28]} 7. Ne5 {[%emt 0:03:29]} Nc6 {[%emt 0:02:59]} 8. Bxc6 {[%emt 0:00:22]} bxc6 {[%emt 0:00:06]} 9. Nxc6 {[%emt 0:00:12]} Qe8 {[%emt 0:01:00]} 10. Nxe7+ {[%emt 0:00:26]} Qxe7 {[%emt 0:00:05]} 11. Na3 {[%emt 0:00:32]} 1/2-1/2

[Event "Polonia Wroclaw Masters Cup-GM"]
[Site "Wroclaw"]
[Date "2019.05.04"]
[Round "8.3"]
[White "Gumularz, Szymon"]
[Black "Przybylski, Wojciech"]
[Result "1-0"]
[ECO "E48"]
[WhiteElo "2483"]
[BlackElo "2320"]
[Annotator "ChessBase"]
[PlyCount "79"]
[EventDate "2019.04.28"]
[EventType "tourn"]
[EventCountry "POL"]
[SourceTitle "playchess.com"]
[Source "ChessBase"]
[SourceQuality "1"]
[TimeControl "40/5400+30:900+30"]

1. d4 {[%emt 0:00:00]} Nf6 {[%emt 0:05:15]} 2. c4 {[%emt 0:01:36]} e6 {[%emt 0:00:32]} 3. Nc3 {[%emt 0:00:14]} Bb4 {[%emt 0:00:19]} 4. e3 {[%emt 0:00:10]} O-O {[%emt 0:00:34]} 5. Bd3 {[%emt 0:00:05]} d5 {[%emt 0:00:36]} 6. cxd5 {[%emt 0:01:37]} exd5 {[%emt 0:02:54]} 7. Nge2 {[%emt 0:00:07]} Re8 {[%emt 0:04:55]} 8. Bd2 {[%emt 0:00:13]} Bd6 {[%emt 0:03:43]} 9. Rc1 {[%emt 0:00:13]} a6 {[%emt 0:07:11]} 10. O-O {[%emt 0:12:12]} Nc6 {[%emt 0:14:52]} 11. f3 {[%emt 0:05:45]} Nb4 {[%emt 0:10:41]} 12. Bb1 {[%emt 0:00:18]} c5 {[%emt 0:00:16]} 13. Qe1 {[%emt 0:02:00]} Nc6 {[%emt 0:18:56]} 14. Qh4 {[%emt 0:03:38]} Ne7 {[%emt 0:00:33]} 15. g4 {[%emt 0:02:50]} Ng6 {[%emt 0:02:10]} 16. Qf2 {[%emt 0:00:40]} Be6 {[%emt 0:01:52]} 17. Kh1 {[%emt 0:06:36]} Nd7 {[%emt 0:02:16]} 18. e4 {[%emt 0:13:16]} cxd4 {[%emt 0:01:06]} 19. Nxd4 {[%emt 0:00:08]} dxe4 {[%emt 0:01:31]} 20. Nxe4 {[%emt 0:00:50]} Bf8 {[%emt 0:02:47]} 21. Rfd1 {[%emt 0:05:10]} Nf6 {[%emt 0:06:01]} 22. Be1 {[%emt 0:07:42]} Qe7 {[%emt 0:05:35]} 23. Nf5 {[%emt 0:18:58]} Bxf5 {[%emt 0:00:06]} 24. gxf5 {[%emt 0:00:06]} Ne5 {[%emt 0:02:37]} 25. Bc3 {[%emt 0:01:37]} Nxe4 {[%emt 0:01:07]} 26. Bxe4 {[%emt 0:01:03]} Ng4 {[%emt 0:00:44]} 27. Qg3 {[%emt 0:05:24]} Nf6 {[%emt 0:00:08]} 28. Bxb7 {[%emt 0:01:05]} Nh5 {[%emt 0:02:32]} 29. Qg4 {[%emt 0:00:06]} Qxb7 {[%emt 0:00:18]} 30. Qxh5 {[%emt 0:00:04]} Re3 {[%emt 0:00:45]} 31. Rf1 {[%emt 0:00:07]} Rae8 {[%emt 0:01:34]} 32. Rc2 {[%emt 0:00:15]} Kh8 {[%emt 0:00:52]} 33. Rg2 {[%emt 0:00:53]} Re2 {[%emt 0:00:34]} 34. Rg3 {[%emt 0:03:49]} Qc6 {[%emt 0:00:35]} 35. Qxf7 {[%emt 0:01:23]} Qh6 {[%emt 0:00:08]} 36. h3 {[%emt 0:01:02]} R2e7 {[%emt 0:00:13]} 37. Qc4 {[%emt 0:00:31]} Rd7 {[%emt 0:01:00]} 38. f6 {[%emt 0:00:30]} Red8 {[%emt 0:00:38]} 39. Rfg1 {[%emt 0:00:38]} Re8 {[%emt 0:00:29]} 40. Qg4 {[%emt 0:00:00]} 1-0

[Event "Polonia Wroclaw Masters Cup-GM"]
[Site "Wroclaw"]
[Date "2019.05.04"]
[Round "8.4"]
[White "Kozak, Antoni"]
[Black "Swayams, Mishra"]
[Result "0-1"]
[ECO "D38"]
[WhiteElo "2374"]
[BlackElo "2473"]
[Annotator "ChessBase"]
[PlyCount "68"]
[EventDate "2019.04.28"]
[EventType "tourn"]
[EventCountry "POL"]
[SourceTitle "playchess.com"]
[Source "ChessBase"]
[SourceQuality "1"]
[TimeControl "40/5400+30:900+30"]

1. d4 {[%emt 0:00:00]} Nf6 {[%emt 0:00:00]} 2. c4 {[%emt 0:00:00]} e6 {[%emt 0:00:00]} 3. Nf3 {[%emt 0:00:08]} d5 {[%emt 0:00:00]} 4. Nc3 {[%emt 0:00:07]} Bb4 {[%emt 0:00:10]} 5. cxd5 {[%emt 0:00:57]} exd5 {[%emt 0:00:15]} 6. Bg5 {[%emt 0:00:56]} h6 {[%emt 0:01:05]} 7. Bh4 {[%emt 0:00:35]} c5 {[%emt 0:06:28]} 8. e3 {[%emt 0:05:23]} g5 {[%emt 0:02:03]} 9. Bb5+ {[%emt 0:02:08]} Nc6 {[%emt 0:02:38]} 10. Bg3 {[%emt 0:00:11]} Ne4 {[%emt 0:01:13]} 11. O-O {[%emt 0:00:19]} Bxc3 {[%emt 0:01:48]} 12. bxc3 {[%emt 0:00:25]} c4 {[%emt 0:01:50]} 13. Rc1 {[%emt 0:09:45]} O-O {[%emt 0:01:29]} 14. Bxc6 {[%emt 0:04:10]} bxc6 {[%emt 0:00:03]} 15. Ne5 {[%emt 0:00:12]} Qe8 {[%emt 0:06:29]} 16. Qh5 {[%emt 0:08:34]} Kg7 {[%emt 0:01:22]} 17. f4 {[%emt 0:01:02]} f6 {[%emt 0:01:30]} 18. Qxe8 {[%emt 0:00:07]} Rxe8 {[%emt 0:00:01]} 19. Nxc6 {[%emt 0:00:07]} a5 {[%emt 0:01:07]} 20. fxg5 {[%emt 0:09:03]} hxg5 {[%emt 0:00:12]} 21. Rb1 {[%emt 0:01:26]} Nd2 {[%emt 0:01:09]} 22. Rb5 {[%emt 0:00:22]} Nxf1 {[%emt 0:00:38]} 23. Kxf1 {[%emt 0:00:05]} Re6 {[%emt 0:02:23]} 24. Nxa5 {[%emt 0:08:16]} Rxe3 {[%emt 0:00:10]} 25. Rxd5 {[%emt 0:02:38]} Rxc3 {[%emt 0:00:15]} 26. Rc5 {[%emt 0:02:14]} Rc1+ {[%emt 0:01:57]} 27. Kf2 {[%emt 0:01:03]} c3 {[%emt 0:00:05]} 28. Bc7 {[%emt 0:01:34]} Ba6 {[%emt 0:01:21]} 29. d5 {[%emt 0:01:47]} Re8 {[%emt 0:00:10]} 30. Nc4 {[%emt 0:03:36]} Rd1 {[%emt 0:02:59]} 31. d6 {[%emt 0:03:47]} c2 {[%emt 0:00:15]} 32. Ne3 {[%emt 0:00:16]} Rd2+ {[%emt 0:00:05]} 33. Kf3 {[%emt 0:00:04]} Be2+ {[%emt 0:00:18]} 34. Kf2 {[%emt 0:00:10]} Bc4+ {[%emt 0:00:14]} 0-1

[Event "Polonia Wroclaw Masters Cup-GM"]
[Site "Wroclaw"]
[Date "2019.05.04"]
[Round "8.5"]
[White "Pranav Anand"]
[Black "Kantans, Toms"]
[Result "0-1"]
[ECO "E43"]
[WhiteElo "2378"]
[BlackElo "2513"]
[Annotator "ChessBase"]
[PlyCount "82"]
[EventDate "2019.04.28"]
[EventType "tourn"]
[EventCountry "POL"]
[SourceTitle "playchess.com"]
[Source "ChessBase"]
[SourceQuality "1"]
[TimeControl "40/5400+30:900+30"]

1. d4 {[%emt 0:00:00]} Nf6 {[%emt 0:00:00]} 2. c4 {[%emt 0:00:00]} e6 {[%emt 0:00:00]} 3. Nc3 {[%emt 0:00:00]} Bb4 {[%emt 0:00:00]} 4. e3 {[%emt 0:00:00]} b6 {[%emt 0:00:09]} 5. f3 {[%emt 0:00:28]} O-O {[%emt 0:01:24]} 6. e4 {[%emt 0:00:36]} c5 {[%emt 0:00:14]} 7. d5 {[%emt 0:00:43]} Re8 {[%emt 0:00:09]} 8. Nge2 {[%emt 0:03:15]} d6 {[%emt 0:02:41]} 9. Ng3 {[%emt 0:04:05]} b5 {[%emt 0:02:31]} 10. Kf2 {[%emt 0:08:05]} bxc4 {[%emt 0:05:58]} 11. Bxc4 {[%emt 0:02:48]} Ba6 {[%emt 0:00:09]} 12. Bxa6 {[%emt 0:02:12]} Nxa6 {[%emt 0:00:05]} 13. dxe6 {[%emt 0:04:34]} fxe6 {[%emt 0:00:08]} 14. Re1 {[%emt 0:14:02]} c4 {[%emt 0:01:16]} 15. a3 {[%emt 0:13:28]} Bc5+ {[%emt 0:05:49]} 16. Be3 {[%emt 0:00:11]} d5 {[%emt 0:05:59]} 17. e5 {[%emt 0:07:41]} Nd7 {[%emt 0:06:07]} 18. Nxd5 {[%emt 0:01:56]} exd5 {[%emt 0:05:28]} 19. Qxd5+ {[%emt 0:00:07]} Kh8 {[%emt 0:00:03]} 20. Qxc4 {[%emt 0:09:56]} Qb6 {[%emt 0:07:40]} 21. Rad1 {[%emt 0:05:09]} Nxe5 {[%emt 0:02:24]} 22. Qc3 {[%emt 0:03:01]} Bxe3+ {[%emt 0:00:57]} 23. Rxe3 {[%emt 0:00:08]} Rac8 {[%emt 0:05:32]} 24. Qd4 {[%emt 0:01:09]} Nc5 {[%emt 0:15:31]} 25. b4 {[%emt 0:02:23]} Na4 {[%emt 0:01:33]} 26. Qxb6 {[%emt 0:01:49]} Nxb6 {[%emt 0:01:10]} 27. Nf5 {[%emt 0:01:23]} Nec4 {[%emt 0:11:48]} 28. Rxe8+ {[%emt 0:00:46]} Rxe8 {[%emt 0:00:01]} 29. Nd6 {[%emt 0:00:15]} Nxd6 {[%emt 0:00:05]} 30. Rxd6 {[%emt 0:00:05]} Kg8 {[%emt 0:00:02]} 31. f4 {[%emt 0:01:36]} Rc8 {[%emt 0:02:06]} 32. Rd3 {[%emt 0:01:05]} Kf7 {[%emt 0:01:34]} 33. Kf3 {[%emt 0:00:26]} Ke6 {[%emt 0:00:04]} 34. g4 {[%emt 0:00:42]} Nd5 {[%emt 0:00:12]} 35. Kg3 {[%emt 0:03:43]} Rc4 {[%emt 0:01:56]} 36. Rf3 {[%emt 0:00:05]} Re4 {[%emt 0:01:25]} 37. Rf1 {[%emt 0:01:10]} Kd6 {[%emt 0:02:40]} 38. Rf3 {[%emt 0:00:40]} Ne3 {[%emt 0:02:11]} 39. h3 {[%emt 0:01:22]} Kd5 {[%emt 0:00:53]} 40. Kh4 {[%emt 0:00:00]} Ng2+ {[%emt 0:00:00]} 41. Kg5 {[%emt 0:01:15]} h6+ {[%emt 0:03:55]} 0-1

[Event "Polonia Wroclaw Masters Cup-GM"]
[Site "Wroclaw"]
[Date "2019.05.05"]
[Round "9.3"]
[White "Przybylski, Wojciech"]
[Black "Kozak, Antoni"]
[Result "1/2-1/2"]
[ECO "B12"]
[WhiteElo "2320"]
[BlackElo "2404"]
[Annotator "NA"]
[PlyCount "162"]
[EventDate "2019.04.28"]
[EventType "tourn"]
[EventCountry "POL"]
[SourceTitle "playchess.com"]
[Source "ChessBase"]
[SourceQuality "1"]
[TimeControl "40/5400+30:900+30"]

{[%evp 8,161,28,25,17,12,25,32767,32767,32767,32767,32767,32767,32767,32767,32767,32767,0,0,32767,0,2,41,22,26,28,45,41,42,32767,56,37,32767,32767,32767,32767,32767,32767,75,92,77,97,32767,90,32767,100,145,32767,233,254,32767,32767,340,32767,32767,32767,32767,32767,204,32767,32767,32767,32767,32767,32767,32767,32767,-277,32767,75,32767,32767,68,52,66,32767,33,32767,145,91,72,38,32767,32767,32767,70,97,95,114,37,32767,71,89,32767,113,106,230,137,150,68,62,66,62,52,58,51,52,48,45,40,32767,38,35,25,23,23,23,25,27,32767,22,23,22,22,24,22,24,25,23,21,32767,20,25,0,20,14,23,24,32767,14,32767,32767,10,20,20,20,22,22,22,22,22,20,22,22,20,20]} 1. e4 {[%emt 0:00:00]} c6 {[%emt 0:00:00]} 2. d4 {[%emt 0:00:00]} d5 {[%emt 0:00:00]} 3. e5 {[%emt 0:00:12]} Bf5 {[%emt 0:00:00]} 4. Nf3 {[%emt 0:00:18]} e6 {[%emt 0:00:02]} 5. Be2 {[%emt 0:00:08]} c5 {[%emt 0:00:27]} 6. Be3 {[%emt 0:00:17]} cxd4 {[%emt 0:00:08]} 7. Nxd4 {[%emt 0:00:10]} Ne7 {[%emt 0:00:05]} 8. Nd2 {[%emt 0:00:35] B12: Caro-Kann: Advance Variation} (8. O-O Nbc6 9. Bb5 a6 10. Bxc6+ Nxc6 11. Nxf5 exf5 12. c3 Be7 13. Nd2 Qd7 14. Nf3 Qe6 15. Qb3 O-O 16. Bb6 Bd8 {½-½ (40) Navara,D (2739)-Radjabov,T (2756) Shamkir 2019}) 8... Nbc6 {[%emt 0:00:16]} 9. N2f3 {[%emt 0:00:33]} Be4 {[%emt 0:00:06]} 10. O-O {[%emt 0:00:26]} Ng6 {[%emt 0:00:26]} 11. Nxc6 {[%emt 0:01:46]} bxc6 {[%emt 0:00:05]} 12. Ng5 {[%emt 0:01:14]} Be7 $1 {[%emt 0:09:19]} 13. Nxe4 {[%emt 0:03:29]} dxe4 {[%emt 0:00:06]} 14. Qd4 {[%emt 0:02:10]} Qxd4 {[%emt 0:06:45]} 15. Bxd4 {[%emt 0:00:03]} O-O {[%emt 0:01:44]} 16. Rfe1 $146 {[%emt 0:13:47]} Rfd8 {[%emt 0:06:09]} 17. Bc3 {[%emt 0:05:18]} Nf4 {[%emt 0:01:24]} 18. Bc4 {[%emt 0:26:39]} Nd5 {[%emt 0:03:34]} 19. Ba5 {[%emt 0:02:51]} Bb4 {[%emt 0:08:49]} 20. Bxb4 {[%emt 0:04:05]} Nxb4 {[%emt 0:00:07]} 21. Bb3 {[%emt 0:00:25]} Rd2 {[%emt 0:00:39]} 22. Rac1 {[%emt 0:00:26]} Rad8 {[%emt 0:02:11]} 23. Kf1 {[%emt 0:00:40]} ({But not} 23. Rxe4 Nxc2 24. g3 (24. Bxc2 Rxc2 25. Ree1 Rxb2 $17) 24... Nd4 $15) 23... c5 {[%emt 0:14:28]} 24. Rxe4 {[%emt 0:00:32]} Nc6 {[%emt 0:01:05]} 25. Ba4 {[%emt 0:08:15]} Ne7 {[%emt 0:01:09]} 26. Bb5 {[%emt 0:05:47]} R2d5 {[%emt 0:06:50]} 27. Ra4 {[%emt 0:03:08]} Ng6 {[%emt 0:01:41]} (27... Nc8 $16) 28. Rxa7 {[%emt 0:04:07]} Nf4 {[%emt 0:00:17]} 29. Re1 {[%emt 0:04:11]} g5 {[%emt 0:07:13]} 30. Rc7 {[%emt 0:05:36]} Ng6 {[%emt 0:03:50]} 31. Bc4 {[%emt 0:01:12]} Rd2 {[%emt 0:00:08]} 32. Bb3 {[%emt 0:00:38]} R8d4 {[%emt 0:01:04]} 33. c3 {[%emt 0:03:56]} Rd8 {[%emt 0:01:52]} 34. Re2 {[%emt 0:01:20]} Nf4 {[%emt 0:00:24]} 35. Rxd2 {[%emt 0:01:58]} Rxd2 {[%emt 0:00:06]} 36. Rxc5 {[%emt 0:00:54]} Rxb2 {[%emt 0:01:16]} 37. Rc8+ {[%emt 0:00:34]} Kg7 {[%emt 0:00:04]} 38. Rd8 {[%emt 0:00:17]} Kg6 {[%emt 0:01:27]} 39. c4 {[%emt 0:00:50]} Kf5 $1 {[%emt 0:03:07] [#]} 40. g3 {[%emt 0:00:00]} (40. Ke1 $1 $16) 40... Ng6 {[%emt 0:00:00]} 41. Rd1 {[%emt 0:06:40]} Nxe5 {[%emt 0:08:08]} 42. c5 {[%emt 0:00:01]} Ke4 {[%emt 0:02:01]} (42... Kf6 $14) 43. Rc1 {[%emt 0:02:04]} Nc6 {[%emt 0:04:59]} 44. Bc4 {[%emt 0:00:50]} Rb8 {[%emt 0:08:43]} 45. a4 {[%emt 0:01:21]} Ke5 {[%emt 0:00:11]} 46. Kg2 {[%emt 0:02:20]} Rc8 {[%emt 0:03:32]} 47. Bb5 {[%emt 0:01:59]} Nd4 {[%emt 0:00:08]} 48. h3 {[%emt 0:02:16]} (48. Bd7 $16 Rc7 49. Be8) 48... Kd5 {[%emt 0:01:09]} 49. Bc4+ {[%emt 0:00:34]} Kc6 {[%emt 0:00:04]} 50. a5 {[%emt 0:01:37]} Ra8 {[%emt 0:04:11]} 51. a6 {[%emt 0:00:14]} f5 {[%emt 0:00:21]} (51... h6 $16) 52. g4 {[%emt 0:00:41]} Ra7 {[%emt 0:00:17]} 53. Bd3 {[%emt 0:00:49]} ({White should try} 53. f3 $16) 53... Nb3 $1 {[%emt 0:02:30]} 54. Rc3 {[%emt 0:00:10]} Nxc5 {[%emt 0:00:03]} 55. gxf5 {[%emt 0:00:04]} exf5 {[%emt 0:00:03]} 56. Bxf5 {[%emt 0:00:41]} Rxa6 {[%emt 0:00:04]} 57. Bxh7 {[%emt 0:00:11]} Kd6 {[%emt 0:01:30]} 58. Bc2 {[%emt 0:01:31]} Rb6 {[%emt 0:01:34]} 59. Rc4 {[%emt 0:00:52]} Ne6 {[%emt 0:00:36]} 60. h4 {[%emt 0:00:40]} gxh4 {[%emt 0:00:25]} 61. Rxh4 {[%emt 0:00:01]} Rb8 {[%emt 0:00:38]} 62. Ra4 {[%emt 0:00:43]} Ke5 {[%emt 0:01:26]} 63. Ra5+ {[%emt 0:00:41]} Kf6 {[%emt 0:00:06]} 64. Be4 {[%emt 0:00:30]} Rg8+ {[%emt 0:00:20]} 65. Kf1 {[%emt 0:00:06]} Rg5 {[%emt 0:00:44]} 66. Ra8 {[%emt 0:00:11]} Ke5 {[%emt 0:01:17]} 67. Bc2 {[%emt 0:00:02]} Nf4 {[%emt 0:00:51]} 68. Re8+ {[%emt 0:00:06]} Kf6 {[%emt 0:00:20]} 69. Rf8+ {[%emt 0:00:57]} Ke5 {[%emt 0:00:04]} 70. Re8+ {[%emt 0:01:20]} Kf6 {[%emt 0:00:06]} 71. Re4 {[%emt 0:00:18]} Ne6 {[%emt 0:00:25]} 72. Bd1 {[%emt 0:00:59]} Ra5 {[%emt 0:01:27]} 73. Bg4 {[%emt 0:00:12]} Nc5 {[%emt 0:01:09]} 74. Re8 {[%emt 0:00:08]} Nd3 {[%emt 0:00:31]} 75. Kg2 {[%emt 0:01:19]} Ra2 {[%emt 0:00:43]} 76. Kg3 {[%emt 0:00:03]} Nxf2 {[%emt 0:00:33]} 77. Be2 {[%emt 0:00:10]} Rxe2 {[%emt 0:02:23]} 78. Rxe2 {[%emt 0:00:07]} Nd3 {[%emt 0:00:01]} 79. Rd2 {[%emt 0:00:44]} Nc5 {[%emt 0:00:14]} 80. Rd5 {[%emt 0:00:13]} Ne6 {[%emt 0:00:20]} 81. Kg4 {[%emt 0:00:05]} Ng7 {[%emt 0:00:17]} 1/2-1/2

[Event "Polonia Wroclaw Masters Cup-GM"]
[Site "Wroclaw"]
[Date "2019.05.05"]
[Round "9.4"]
[White "Skawinski, Arkadiusz"]
[Black "Gumularz, Szymon"]
[Result "1/2-1/2"]
[ECO "B06"]
[WhiteElo "2392"]
[BlackElo "2483"]
[Annotator "RC"]
[PlyCount "93"]
[EventDate "2019.04.28"]
[EventType "tourn"]
[EventCountry "POL"]
[SourceTitle "playchess.com"]
[Source "ChessBase"]
[SourceQuality "1"]
[TimeControl "40/5400+30:900+30"]

1. e4 {[%emt 0:00:00]} g6 {[%emt 0:00:00]} 2. d4 {[%emt 0:00:00]} Bg7 {[%emt 0:00:00]} 3. Nf3 {[%emt 0:00:00]} d6 {[%emt 0:00:00]} 4. Be3 {[%emt 0:00:32]} Nf6 {[%emt 0:01:18]} 5. Nc3 {[%emt 0:00:07]} a6 {[%emt 0:00:23]} 6. Qd2 {[%emt 0:00:22]} b5 {[%emt 0:03:17]} 7. Bh6 {[%emt 0:00:35]} O-O {[%emt 0:07:51]} 8. Bd3 {[%emt 0:01:20]} Nc6 {[%emt 0:11:05]} 9. Nd5 {[%emt 0:05:53]} Bg4 {[%emt 0:06:03]} 10. c3 {[%emt 0:06:43]} Bxf3 {[%emt 0:03:57]} 11. gxf3 {[%emt 0:00:04]} e6 {[%emt 0:02:47]} 12. Nxf6+ {[%emt 0:13:10]} Qxf6 {[%emt 0:00:29]} 13. Be2 {[%emt 0:00:01]} Bxh6 {[%emt 0:06:06]} 14. Qxh6 {[%emt 0:00:09]} b4 {[%emt 0:05:05]} 15. h4 {[%emt 0:03:56]} bxc3 {[%emt 0:01:39]} 16. bxc3 {[%emt 0:00:13]} Qg7 {[%emt 0:02:50]} 17. Qxg7+ {[%emt 0:03:09]} Kxg7 {[%emt 0:00:05]} 18. f4 {[%emt 0:00:03]} d5 {[%emt 0:04:11]} 19. Bf3 {[%emt 0:03:40]} Ne7 {[%emt 0:00:50]} 20. Rb1 {[%emt 0:00:36]} Rab8 {[%emt 0:01:30]} 21. Kd2 {[%emt 0:01:11]} h5 {[%emt 0:00:48]} 22. Rb3 {[%emt 0:00:59]} Rb5 {[%emt 0:05:43]} 23. Rhb1 {[%emt 0:02:59]} Ra5 {[%emt 0:00:17]} 24. R1b2 {[%emt 0:00:12]} dxe4 {[%emt 0:00:52]} 25. Bxe4 {[%emt 0:00:07]} c5 {[%emt 0:00:07]} 26. Rb7 {[%emt 0:02:52]} Kf6 {[%emt 0:02:07]} 27. Rc7 {[%emt 0:00:16]} cxd4 {[%emt 0:01:03]} 28. cxd4 {[%emt 0:00:17]} Nf5 {[%emt 0:05:35]} 29. Rc5 {[%emt 0:05:28]} Ra3 {[%emt 0:01:36]} 30. Bxf5 {[%emt 0:05:26]} gxf5 {[%emt 0:00:09]} 31. Rc3 {[%emt 0:12:14]} Ra4 {[%emt 0:08:11]} 32. Ke3 {[%emt 0:00:44]} Rd8 {[%emt 0:00:10]} 33. Rd3 {[%emt 0:00:48]} Rd5 {[%emt 0:00:39]} 34. a3 {[%emt 0:00:19]} Rc4 {[%emt 0:01:42]} 35. Rb1 {[%emt 0:04:58]} Rc2 {[%emt 0:02:03]} 36. Rb6 {[%emt 0:05:07]} a5 {[%emt 0:00:36]} 37. Rb1 {[%emt 0:01:39]} Rc8 {[%emt 0:08:41]} 38. Rg1 {[%emt 0:02:12]} Rb5 {[%emt 0:00:57]} 39. Rg5 {[%emt 0:00:30]} a4 {[%emt 0:02:13]} 40. Rxh5 {[%emt 0:00:00]} Rb3 {[%emt 0:00:00]} 41. d5 {[%emt 0:07:16]} Rxd3+ {[%emt 0:08:00]} 42. Kxd3 {[%emt 0:00:07]} Rd8 {[%emt 0:00:06]} 43. Rg5 {[%emt 0:00:48]} Rxd5+ {[%emt 0:00:04]} 44. Ke3 {[%emt 0:02:49]} Rb5 {[%emt 0:04:24]} 45. Rg3 {[%emt 0:00:51]} Rb1 {[%emt 0:02:42]} 46. h5 {[%emt 0:02:14]} Re1+ {[%emt 0:02:44]} 47. Kf3 {[%emt 0:01:33]} 1/2-1/2